bitfinex/quotes_BTCUSD_20251201
["timestamp","ask_amount","ask_price","bid_price","bid_amount"]
[1764606999175,0.02683,84878.0,84872.0,0.005]
[1764606999474,0.02732,84878.0,84865.0,0.04633]
[1764606999796,0.24739715,84884.0,84865.0,0.04633]
[1764606999797,0.323,84881.0,84877.0,0.0615]
[1764607000001,0.323,84879.0,84877.0,0.0615]
[1764607000153,0.01476952,84894.0,84880.0,0.0615]
[1764607000154,0.323,84890.0,84880.0,0.0615]
[1764607000356,0.323,84886.0,84862.0,0.01178383]
[1764607000553,0.323,84879.0,84860.0,0.0004]
[1764607000810,0.323,84879.0,84878.0,0.002]
[1764607001010,0.02683,84878.0,84872.0,0.001]
[1764607001258,0.01178203,84875.0,84872.0,0.001]
[1764607001450,0.32349,84873.0,84872.0,0.001]
[1764607001598,0.323,84873.0,84865.0,0.04671894]
[1764607001778,0.0184811,84877.0,84865.0,0.04671894]
[1764607001984,0.0184811,84877.0,84874.0,0.24742539]
[1764607002193,0.0184811,84877.0,84876.0,0.0615]
[1764607002387,0.323,84886.0,84876.0,0.0615]
[1764607002595,0.11522596,84885.0,84872.0,0.001]
[1764607002797,0.02683,84873.0,84872.0,0.001]
[1764607003827,0.02683,84873.0,84865.0,0.00038894]
[1764607003828,0.02732,84873.0,84865.0,0.00038894]
[1764607004033,0.00049,84866.0,84865.0,0.00038894]
[1764607004234,2.32349,84866.0,84865.0,0.00038894]
[1764607004485,2.3725,84866.0,84865.0,0.00038894]
[1764607004691,2.3725,84866.0,84865.0,0.00166448]
[1764607004692,2.48772596,84866.0,84865.0,0.00166448]
[1764607004859,2.3725,84866.0,84865.0,0.00166448]
[1764607005395,2.3725,84866.0,84865.0,0.00466448]
[1764607005396,2.323,84866.0,84865.0,0.00466448]
[1764607005544,2.34148266,84866.0,84865.0,0.00166448]
[1764607006534,2.45719862,84866.0,84865.0,0.00166448]
[1764607006751,2.45719862,84866.0,84865.0,0.00266448]
[1764607006921,0.01848266,84866.0,84865.0,0.00266448]
[1764607007284,0.323,84874.0,84865.0,0.06416448]
[1764607007438,0.323,84874.0,84865.0,0.06288894]
[1764607008114,0.00049,84866.0,84865.0,0.00038894]
[1764607008264,2.35819556,84866.0,84865.0,0.00038894]
[1764607008474,2.40720556,84866.0,84865.0,0.00038894]
[1764607008643,2.35819556,84866.0,84865.0,0.00138894]
[1764607008842,2.323,84866.0,84865.0,0.00138894]
[1764607009952,0.02683,84876.0,84865.0,0.00138894]
[1764607010151,0.323,84872.0,84865.0,0.00138894]
[1764607010333,0.323,84870.0,84865.0,0.00138894]
[1764607010540,0.323,84870.0,84865.0,0.23605636]
[1764607010714,0.323,84870.0,84867.0,0.01178314]
[1764607010916,0.01848161,84874.0,84870.0,0.24743725]
[1764607011175,0.01848161,84874.0,84873.0,0.0615]
[1764607011538,0.01848161,84874.0,84873.0,0.15471]
[1764607011739,0.01848161,84874.0,84865.0,0.00238894]
[1764607011966,0.01848161,84874.0,84865.0,0.00038894]
[1764607012160,0.01848161,84874.0,84870.0,0.002]
[1764607012679,0.01848161,84874.0,84873.0,0.0625138]
[1764607013087,0.01848161,84874.0,84873.0,0.1557238]
[1764607013496,0.323,84890.0,84873.0,0.1557238]
[1764607013660,0.323,84886.0,84873.0,0.15471]
[1764607013858,0.323,84884.0,84873.0,0.15471]
[1764607014076,0.323,84882.0,84870.0,0.002]
[1764607014665,0.323,84882.0,84867.0,0.03062314]
[1764607014948,0.323,84889.0,84869.0,0.01178286]
[1764607015213,0.323,84885.0,84869.0,0.01178286]
[1764607015515,0.323,84881.0,84867.0,0.03062314]
[1764607015647,0.323,84881.0,84870.0,0.11154272]
[1764607015845,0.323,84881.0,84871.0,0.24743428]
[1764607016064,0.323,84881.0,84880.0,0.06572]
[1764607016267,0.34834413,84881.0,84880.0,0.06572]
[1764607016547,0.01848016,84882.0,84880.0,0.06572]
[1764607017190,0.03150497,84894.0,84880.0,0.06572]
[1764607017191,0.02534341,84886.0,84885.0,0.23561288]
[1764607017405,0.0253727,84901.0,84888.0,0.04765]
[1764607017564,2.0,84902.0,84891.0,0.06572]
[1764607017765,2.0,84900.0,84891.0,0.06572]
[1764607017950,2.0,84898.0,84891.0,0.06572]
[1764607018159,0.3483727,84897.0,84892.0,0.11053967]
[1764607018368,0.0253727,84896.0,84892.0,0.09876]
[1764607018797,0.0253727,84896.0,84892.0,0.0988765]
[1764607019149,0.323,84899.0,84892.0,0.0988765]
[1764607019350,0.0253727,84898.0,84892.0,0.0988765]
[1764607019656,0.0253727,84898.0,84893.0,0.01177953]
[1764607019807,0.0253727,84898.0,84897.0,0.06572]
[1764607020176,0.0253727,84898.0,84897.0,0.40005958]
[1764607020404,0.0253727,84912.0,84906.0,0.01177773]
[1764607020610,0.01847755,84914.0,84913.0,0.04765]
[1764607021299,0.01847755,84914.0,84913.0,0.24091786]
[1764607021503,2.0,84923.0,84917.0,0.0117762]
[1764607021744,0.0253727,84922.0,84920.0,0.06572]
[1764607021946,0.01847505,84922.0,84920.0,0.06572]
[1764607022775,0.01847505,84922.0,84921.0,0.16448]
[1764607022944,2.0,84936.0,84926.0,0.23549866]
[1764607023122,0.018474,84932.0,84929.0,0.01177454]
[1764607023302,0.018474,84932.0,84928.0,0.01177467]
[1764607023507,0.018474,84932.0,84928.0,0.09876]
[1764607024276,0.018474,84932.0,84931.0,0.06572]
[1764607025161,0.018474,84932.0,84928.0,0.002]
[1764607025756,0.323,84930.0,84928.0,0.002]
[1764607025960,0.018474,84932.0,84928.0,0.10076]
[1764607025961,0.323,84929.0,84928.0,0.10076]
[1764607026166,0.323,84929.0,84928.0,0.09876]
[1764607026318,0.323,84929.0,84928.0,0.16448]
[1764607027370,0.323,84929.0,84928.0,0.16648]
[1764607027568,0.00985,84949.0,84928.0,0.16648]
[1764607027569,0.03150497,84958.0,84943.0,0.0117726]
[1764607027771,2.0,84955.0,84949.0,0.04765]
[1764607028001,0.01847143,84950.0,84949.0,0.04765]
[1764607028209,0.323,84952.0,84949.0,0.04765]
[1764607028384,0.323,84950.0,84949.0,0.04765]
[1764607029403,0.03732211,84961.0,84951.0,0.01177149]
[1764607029404,0.323,84959.0,84951.0,0.01177149]
[1764607029612,0.0002,84970.0,84953.0,0.23542429]
[1764607029977,0.67059634,84970.0,84955.0,0.06572]
[1764607030324,0.02297,84965.0,84951.0,0.01884]
[1764607030534,0.02297,84965.0,84951.0,0.1176]
[1764607030739,0.323,84968.0,84951.0,0.1176]
[1764607030740,0.323,84968.0,84955.0,0.06572]
[1764607030940,0.67059634,84970.0,84955.0,0.06572]
[1764607030941,0.0184682,84959.0,84955.0,0.06572]
[1764607031117,0.0184682,84959.0,84949.0,0.04765]
[1764607031448,0.02297,84957.0,84949.0,0.04765]
[1764607032322,0.02297,84957.0,84955.0,0.003]
[1764607032479,0.02297,84957.0,84949.0,0.04865]
[1764607032917,0.02297,84957.0,84949.0,0.05065]
[1764607033114,0.02297,84957.0,84949.0,0.04765]
[1764607033326,0.24715267,84968.0,84950.0,0.02129]
[1764607033566,2.0,84966.0,84955.0,0.003]
[1764607033687,0.01846741,84960.0,84950.0,0.02129]
[1764607034438,0.01846741,84960.0,84949.0,0.05065]
[1764607034642,0.01846741,84960.0,84959.0,0.06572]
[1764607034846,0.0002,84970.0,84961.0,0.0117701]
[1764607035050,0.0002,84970.0,84963.0,0.01176982]
[1764607035253,0.00026124,84964.0,84962.0,0.11052996]
[1764607035470,0.00026124,84964.0,84963.0,0.06166535]
[1764607035692,0.00026124,84964.0,84963.0,0.06572]
[1764607035901,0.00026124,84964.0,84963.0,0.16448]
[1764607036114,0.00026124,84964.0,84956.0,0.0188]
[1764607036522,0.00026124,84964.0,84962.0,0.003]
[1764607036735,0.00026124,84964.0,84963.0,0.06572]
[1764607036942,0.00026124,84964.0,84963.0,0.08334505]
[1764607037144,0.00026124,84964.0,84963.0,0.16748]
[1764607038227,0.00026124,84964.0,84963.0,0.39987658]
[1764607038393,0.00026124,84964.0,84963.0,0.16448]
[1764607039035,0.00026124,84964.0,84963.0,0.39987658]
[1764607039726,0.00026124,84964.0,84963.0,0.41735757]
[1764607039908,0.0002,84970.0,84969.0,0.24686095]
[1764607040153,0.0002,84970.0,84969.0,0.33138095]
[1764607040304,0.0002,84970.0,84969.0,0.43004095]
[1764607040627,10.0,85000.0,84989.0,0.23532457]
[1764607040806,10.0,85000.0,84989.0,0.3605645]
[1764607041018,10.0,85000.0,84989.0,0.50544345]
[1764607041602,10.0,85000.0,84999.0,0.29781987]
[1764607041938,9.2,85000.0,84999.0,0.39382086]
[1764607042143,9.2,85000.0,84999.0,0.49258086]
[1764607042344,9.2,85000.0,84999.0,0.59125296]
[1764607042583,9.2,85000.0,84999.0,0.16448]
[1764607042731,9.2,85000.0,84999.0,0.18328]
[1764607042931,9.2,85000.0,84999.0,0.18528]
[1764607043301,9.2,85000.0,84999.0,0.19328]
[1764607043506,9.2,85000.0,84999.0,0.42057688]
[1764607043866,9.2,85000.0,84999.0,0.51904822]
[1764607044074,9.2,85000.0,84999.0,0.28175134]
[1764607044563,9.2,85000.0,84999.0,0.19228]
[1764607044747,9.2,85000.0,84999.0,0.20376099]
[1764607045753,9.20117504,85000.0,84999.0,0.20376099]
[1764607047058,8.50183504,85000.0,84999.0,0.26628398]
[1764607047259,8.34049013,85000.0,84999.0,0.26628398]
[1764607048604,7.70681901,85000.0,84999.0,0.26628398]
[1764607048941,7.70681901,85000.0,84999.0,0.25480299]
[1764607049076,7.70681901,85000.0,84999.0,0.58928398]
[1764607049478,7.08468909,85000.0,84999.0,0.57780299]
[1764607049849,6.54920823,85000.0,84999.0,0.58228398]
[1764607049998,3.94158018,85000.0,84999.0,0.70590299]
[1764607050181,3.38214882,85000.0,84999.0,0.76463945]
[1764607050379,2.98784545,85000.0,84999.0,1.19292044]
[1764607050592,2.67889786,85000.0,84999.0,1.20492044]
[1764607050796,2.64355355,85000.0,84999.0,1.20492044]
[1764607051007,2.60820924,85000.0,84999.0,1.06202044]
[1764607051231,2.2807525,85000.0,84999.0,1.06002044]
[1764607051397,1.84239905,85000.0,84999.0,1.07033945]
[1764607051762,1.84239905,85000.0,84999.0,1.07182044]
[1764607051894,1.84239905,85000.0,84999.0,1.08482044]
[1764607052270,0.13066197,85079.0,84999.0,1.08482044]
[1764607052271,4e-05,85083.0,85080.0,0.01175364]
[1764607052474,0.50413008,85142.0,85089.0,0.62057099]
[1764607052678,0.00413008,85142.0,85099.0,0.62054337]
[1764607052851,2.0,85161.0,85129.0,0.24668284]
[1764607052994,2.0,85161.0,85143.0,0.23489893]
[1764607053216,0.09913,85181.0,85160.0,0.0465]
[1764607053422,2.0,85183.0,85170.0,0.67039634]
[1764607053624,0.0005,85189.0,85180.0,0.01173984]
[1764607053828,0.0005,85189.0,85177.0,0.01884]
[1764607054067,0.5,85208.0,85184.0,0.23478587]
[1764607054285,0.05853394,85209.0,85201.0,0.323]
[1764607054528,0.05853394,85209.0,85200.0,0.00999999]
[1764607054529,0.05819682,85214.0,85211.0,0.01173557]
[1764607054737,0.46937795,85215.0,85213.0,0.29722736]
[1764607054976,0.43405906,85215.0,85214.0,0.09284398]
[1764607055185,0.43405906,85215.0,85214.0,0.08136299]
[1764607055399,0.43405906,85215.0,85214.0,0.08179193]
[1764607055805,0.0005,85278.0,85232.0,0.29717664]
[1764607056074,0.0005,85278.0,85232.0,0.31605664]
[1764607056242,0.01840296,85277.0,85232.0,0.70321664]
[1764607056442,0.0005,85278.0,85232.0,1.02621664]
[1764607056646,0.67039634,85260.0,85232.0,0.22181365]
[1764607056999,0.67039634,85260.0,85228.0,0.01173323]
[1764607057186,0.67039634,85260.0,85232.0,0.01348099]
[1764607057542,0.0465,85265.0,85232.0,0.01348099]
[1764607057747,0.323,85259.0,85232.0,0.01148099]
[1764607057943,0.323,85259.0,85232.0,0.01248099]
[1764607058143,0.67039634,85280.0,85232.0,0.06352299]
[1764607058358,0.11890819,85269.0,85232.0,0.07500398]
[1764607058557,0.00808268,85233.0,85232.0,0.07500398]
[1764607059102,0.00808268,85233.0,85232.0,0.08240299]
[1764607059312,0.00808268,85233.0,85232.0,0.09288398]
[1764607059515,0.00808268,85233.0,85232.0,0.08140299]
[1764607059756,0.00808268,85233.0,85232.0,0.01988]
[1764607059949,0.00808268,85233.0,85232.0,0.03136099]
[1764607060108,0.00808268,85233.0,85232.0,0.03036099]
[1764607060307,0.00808268,85233.0,85232.0,0.01888]
[1764607060471,0.00808268,85233.0,85232.0,0.03236099]
[1764607060877,0.00808268,85233.0,85232.0,0.03036099]
[1764607061078,1e-08,85233.0,85232.0,0.03036099]
[1764607061387,1e-08,85233.0,85232.0,0.03236099]
[1764607061611,1e-08,85233.0,85232.0,0.01348099]
[1764607061787,1e-08,85233.0,85232.0,0.03236099]
[1764607062007,1e-08,85233.0,85232.0,0.002]
[1764607062414,1e-08,85233.0,85232.0,0.01148099]
[1764607062623,1e-08,85233.0,85232.0,0.002]
[1764607063112,1e-08,85233.0,85227.0,0.01173337]
[1764607063113,1e-08,85233.0,85231.0,0.23465395]
[1764607063313,0.0465,85249.0,85236.0,0.01173213]
[1764607063567,0.11890819,85239.0,85232.0,0.01273268]
[1764607063707,0.11890819,85239.0,85236.0,0.01173213]
[1764607063908,0.11390819,85239.0,85231.0,0.01148099]
[1764607064108,0.11390819,85239.0,85224.0,0.01173378]
[1764607064109,0.11390819,85239.0,85224.0,0.24640794]
[1764607064372,0.11890819,85249.0,85233.0,0.01173254]
[1764607064566,2.323,85248.0,85229.0,0.01173309]
[1764607064741,2.323,85248.0,85222.0,0.01888]
[1764607064742,2.0,85242.0,85231.0,0.001]
[1764607064923,0.67039634,85241.0,85231.0,0.001]
[1764607065123,2.0,85247.0,85231.0,0.001]
[1764607065363,0.11890819,85235.0,85231.0,0.01273282]
[1764607065567,0.11890819,85235.0,85231.0,0.001]
[1764607065797,0.11890819,85235.0,85222.0,0.03036099]
[1764607065955,2.0,85247.0,85227.0,0.01173337]
[1764607066159,0.323,85248.0,85233.0,0.01173254]
[1764607066160,0.11890819,85236.0,85233.0,0.01173254]
[1764607066383,0.11890819,85249.0,85244.0,0.01173103]
[1764607066737,2.0,85260.0,85241.0,0.01173144]
[1764607066924,0.11890819,85248.0,85242.0,0.0117313]
[1764607067253,0.67039634,85260.0,85246.0,0.01173075]
[1764607067443,0.67039634,85260.0,85243.0,0.01173116]
[1764607067444,2.0,85259.0,85243.0,0.01173116]
[1764607067621,2.0,85259.0,85246.0,0.00038894]
[1764607067824,0.11890819,85249.0,85246.0,0.00038894]
[1764607068029,0.0465,85275.0,85246.0,0.00038894]
[1764607068233,2.0,85273.0,85259.0,0.01172896]
[1764607068427,0.11890819,85261.0,85246.0,0.00038894]
[1764607068613,0.11890819,85261.0,85255.0,0.01172951]
[1764607068813,0.11890819,85260.0,85250.0,0.0117302]
[1764607069017,0.11890819,85274.0,85254.0,0.23459079]
[1764607069018,0.00074729,85256.0,85254.0,0.23459079]
[1764607069194,0.0005,85278.0,85277.0,0.23452982]
[1764607069525,0.0005,85278.0,85275.0,0.01172676]
[1764607069966,0.0005,85278.0,85277.0,0.23452982]
[1764607070497,0.0005,85278.0,85277.0,0.00038894]
[1764607071575,7.5e-05,85278.0,85277.0,0.23491876]
[1764607071755,1.724219,85301.0,85291.0,0.01172456]
[1764607071977,0.01437956,85317.0,85277.0,0.35218011]
[1764607071978,0.01172731,85325.0,85307.0,0.23327434]
[1764607072285,0.05821728,85344.0,85307.0,0.23327434]
[1764607072286,0.5002,85330.0,85307.0,0.23327434]
[1764607072486,0.10551491,85329.0,85308.0,0.00014]
[1764607072692,1.188e-05,85309.0,85308.0,0.06266299]
[1764607072891,1.188e-05,85309.0,85308.0,0.01906]
[1764607073192,1.188e-05,85309.0,85308.0,0.09345292]
[1764607073349,1.188e-05,85309.0,85308.0,0.38605193]
[1764607073686,1.188e-05,85309.0,85308.0,0.41645292]
[1764607073890,1.188e-05,85309.0,85308.0,0.39853292]
[1764607074075,1.188e-05,85309.0,85308.0,0.41745292]
[1764607074277,1.188e-05,85309.0,85308.0,0.44205022]
[1764607074569,1.188e-05,85309.0,85308.0,0.10704385]
[1764607074774,1.188e-05,85309.0,85308.0,0.12596385]
[1764607074977,1.188e-05,85309.0,85308.0,0.19996783]
[1764607075180,0.00247963,85309.0,85308.0,0.18748684]
[1764607075385,1e-08,85309.0,85308.0,0.55400414]
[1764607075608,1e-08,85309.0,85308.0,0.55788785]
[1764607075810,1e-08,85309.0,85308.0,0.59854906]
[1764607075984,1e-08,85309.0,85308.0,0.52196783]
[1764607076215,1e-08,85309.0,85308.0,0.59854906]
[1764607076430,0.015,85350.0,85308.0,0.59854906]
[1764607076431,1e-08,85336.0,85335.0,0.23437042]
[1764607076653,1e-08,85336.0,85335.0,0.63881341]
[1764607076874,1e-08,85336.0,85335.0,1.06055462]
[1764607077126,1e-08,85336.0,85335.0,1.08834953]
[1764607077353,1e-08,85336.0,85335.0,1.12513363]
[1764607077556,1e-08,85336.0,85335.0,1.08834953]
[1764607077726,1e-08,85336.0,85335.0,0.68873847]
[1764607078292,1e-08,85336.0,85335.0,0.23475936]
[1764607078497,1e-08,85336.0,85335.0,0.25367936]
[1764607079102,1e-08,85336.0,85335.0,0.26516035]
[1764607079300,1e-08,85336.0,85335.0,0.25367936]
[1764607079640,1e-08,85336.0,85335.0,0.30876334]
[1764607079843,1e-08,85336.0,85335.0,0.32768334]
[1764607080215,1e-08,85336.0,85335.0,0.31620235]
[1764607080655,1e-08,85336.0,85335.0,0.32768334]
[1764607080932,1e-08,85336.0,85335.0,0.67055167]
[1764607081164,1e-08,85347.0,85346.0,0.23434021]
[1764607081384,1e-08,85347.0,85338.0,0.0117181]
[1764607081385,0.015,85413.0,85410.0,0.23416461]
[1764607081591,0.0001,85415.0,85410.0,0.23416461]
[1764607081592,0.0001,85415.0,85410.0,0.01896]
[1764607081802,0.0001,85415.0,85380.0,0.00999999]
[1764607082007,0.0001,85415.0,85346.0,0.4]
[1764607082008,0.09374762,85403.0,85378.0,0.01171261]
[1764607082243,0.09374762,85382.0,85376.0,0.01896]
[1764607082429,0.323,85397.0,85340.0,0.83650264]
[1764607082430,0.09374762,85385.0,85340.0,0.83650264]
[1764607082557,0.09374762,85385.0,85376.0,0.00038894]
[1764607082998,0.09374762,85403.0,85394.0,0.01171042]
[1764607083202,0.0005,85411.0,85400.0,0.0117096]
[1764607083378,0.09374762,85403.0,85400.0,0.01896]
[1764607083580,0.09374762,85403.0,85395.0,0.01896]
[1764607083782,0.09374762,85401.0,85389.0,0.2342222]
[1764607084013,0.09374762,85401.0,85392.0,0.01171069]
[1764607084187,1.724219,85410.0,85407.0,0.01170864]
[1764607084387,0.0005,85411.0,85408.0,0.0117085]
[1764607084650,0.0005,85411.0,85405.0,0.01170891]
[1764607084792,0.09374762,85410.0,85404.0,0.019]
[1764607085030,1.724219,85409.0,85385.0,0.01171165]
[1764607085240,0.09374762,85397.0,85379.0,0.01171248]
[1764607085447,0.09374762,85397.0,85385.0,0.00038894]
[1764607085448,1.724219,85396.0,85385.0,0.00038894]
[1764607086408,1.724219,85409.0,85397.0,0.01171001]
[1764607086630,0.09374762,85410.0,85388.0,0.01171124]
[1764607086791,0.09374762,85393.0,85388.0,0.01171124]
[1764607086998,0.0005,85411.0,85394.0,0.01171042]
[1764607087195,1.724219,85403.0,85387.0,0.02319237]
[1764607087433,0.09374762,85404.0,85385.0,0.01210059]
[1764607087434,0.09374762,85388.0,85385.0,0.00038894]
[1764607088925,0.09374762,85388.0,85385.0,0.01210059]
[1764607089131,0.09374762,85388.0,85385.0,0.00038894]
[1764607089332,0.09878,85387.0,85385.0,0.00038894]
[1764607089559,0.09878,85399.0,85385.0,0.00038894]
[1764607089806,0.09374762,85391.0,85385.0,0.00038894]
[1764607090094,0.0005,85411.0,85409.0,0.23416735]
[1764607090242,0.0005,85411.0,85410.0,0.01896]
[1764607090722,0.0005,85411.0,85409.0,0.23416735]
[1764607090839,0.0005,85411.0,85409.0,0.23416538]
[1764607091043,0.0005,85411.0,85405.0,0.01170891]
[1764607091246,0.0005,85411.0,85410.0,0.01896]
[1764607091494,0.0005,85411.0,85399.0,0.01170973]
[1764607091647,0.0005,85411.0,85402.0,0.24589381]
[1764607091846,0.0005,85411.0,85390.0,0.01171097]
[1764607092079,0.09878,85410.0,85391.0,0.01896]
[1764607092313,0.09878,85410.0,85388.0,0.01896]
[1764607092314,0.09374762,85392.0,85388.0,0.01896]
[1764607093030,0.09374762,85392.0,85377.0,0.01171275]
[1764607093227,0.323,85407.0,85392.0,0.01171069]
[1764607093426,0.323,85407.0,85389.0,0.01171111]
[1764607093427,0.09374762,85394.0,85389.0,0.24593145]
[1764607093645,0.00184787,85393.0,85388.0,0.03067124]
[1764607093951,0.09374762,85394.0,85391.0,0.24592752]
[1764607094169,0.09374762,85394.0,85380.0,0.24595675]
[1764607094370,0.09374762,85394.0,85382.0,0.01896]
[1764607094569,0.00162107,85386.0,85382.0,0.01896]
[1764607094785,0.00162107,85386.0,85385.0,0.23462211]
[1764607094988,0.0005,85411.0,85410.0,0.23416461]
[1764607095138,0.0005,85411.0,85410.0,0.2646456]
[1764607095328,0.0005,85411.0,85410.0,0.25316461]
[1764607095533,0.0005,85411.0,85385.0,0.00038894]
[1764607095748,0.323,85394.0,85385.0,0.00038894]
[1764607095980,1.724219,85391.0,85385.0,0.00038894]
[1764607096376,1.724219,85389.0,85385.0,0.00038894]
[1764607096774,0.323,85386.0,85385.0,0.00038894]
[1764607096974,2.145999,85386.0,85385.0,0.00038894]
[1764607097806,2.20852199,85386.0,85385.0,0.00038894]
[1764607098027,0.00999999,85380.0,85334.0,0.01171865]
[1764607098227,0.00999999,85380.0,85334.0,0.00038906]
[1764607098228,0.3347155,85357.0,85334.0,0.00038906]
[1764607098405,0.01171508,85360.0,85334.0,0.00038906]
[1764607098406,0.323,85347.0,85334.0,0.00038906]
[1764607098617,0.14865,85348.0,85334.0,0.00038906]
[1764607098618,0.23435038,85343.0,85334.0,0.00038906]
[1764607098821,0.01171824,85337.0,85310.0,0.01172195]
[1764607099023,0.01171989,85325.0,85310.0,0.0003895]
[1764607099278,0.09878,85332.0,85310.0,0.0003895]
[1764607099279,0.04987,85311.0,85310.0,0.0003895]
[1764607099538,0.04987,85311.0,85260.0,0.74479586]
[1764607099539,0.37287,85311.0,85285.0,0.01172539]
[1764607099852,0.323,85308.0,85290.0,0.00078988]
[1764607099949,0.01172332,85300.0,85290.0,0.00078988]
[1764607100162,0.323,85294.0,85290.0,0.00078988]
[1764607100369,0.323,85294.0,85260.0,0.019]
[1764607100370,0.0117269,85274.0,85241.0,0.01173144]
[1764607100576,0.323,85262.0,85241.0,0.00039051]
[1764607100775,1.710217,85272.0,85255.0,0.01172951]
[1764607100977,1.710217,85272.0,85241.0,0.00039051]
[1764607100978,1.710217,85272.0,85251.0,0.01173006]
[1764607101212,1.710217,85272.0,85249.0,0.01173034]
[1764607101213,1.710217,85272.0,85247.0,0.23461169]
[1764607101402,0.04987,85273.0,85249.0,0.01173034]
[1764607101403,1.710217,85270.0,85249.0,0.01173034]
[1764607101699,0.09374762,85250.0,85249.0,0.24633714]
[1764607101902,1.710217,85272.0,85267.0,0.01172786]
[1764607102050,1.72436331,85280.0,85269.0,0.01172759]
[1764607102386,1.710217,85279.0,85276.0,0.01172662]
[1764607102605,0.01414631,85280.0,85270.0,0.01172745]
[1764607103184,0.01414631,85280.0,85270.0,0.00039051]
[1764607103571,0.33714631,85280.0,85270.0,0.00039051]
[1764607104772,0.01414631,85280.0,85272.0,0.01172717]
[1764607104986,0.01414631,85280.0,85272.0,0.23454357]
[1764607105205,0.01414631,85280.0,85278.0,0.23452438]
[1764607105484,0.01414631,85280.0,85275.0,0.01172676]
[1764607105704,0.01414631,85280.0,85277.0,0.01172649]
[1764607105868,0.01414631,85280.0,85278.0,0.23452707]
[1764607106071,0.01414631,85280.0,85277.0,0.24625631]
[1764607106072,0.09374762,85279.0,85277.0,0.24625631]
[1764607106387,0.09374762,85279.0,85264.0,0.25028301]
[1764607106388,0.09374762,85278.0,85270.0,0.01211796]
[1764607106586,0.09374762,85278.0,85270.0,0.00039051]
[1764607107387,0.09374762,85277.0,85276.0,0.23453163]
[1764607107582,0.09374762,85277.0,85270.0,0.00039051]
[1764607107768,1.710217,85276.0,85270.0,0.00039051]
[1764607107978,0.323,85273.0,85270.0,0.00039051]
[1764607108182,1.710217,85272.0,85270.0,0.00039051]
[1764607108473,1.710217,85271.0,85270.0,0.00039051]
[1764607108679,1.802227,85271.0,85270.0,0.00039051]
[1764607109654,1.710217,85272.0,85270.0,0.00039051]
[1764607109907,1.710217,85276.0,85270.0,0.00039051]
[1764607110041,0.01172704,85273.0,85270.0,0.00039051]
[1764607110244,1.710217,85271.0,85270.0,0.00039051]
[1764607110693,1.802227,85271.0,85270.0,0.00039051]
[1764607111957,2.24045296,85271.0,85270.0,0.00039051]
[1764607112157,2.18774999,85271.0,85270.0,0.00039051]
[1764607112366,2.125227,85271.0,85270.0,0.00464872]
[1764607112712,0.323,85268.0,85233.0,0.019]
[1764607112860,0.323,85268.0,85257.0,0.01172924]
[1764607112861,1.710217,85267.0,85257.0,0.01172924]
[1764607113064,0.09374762,85264.0,85262.0,0.23457108]
[1764607113375,0.09374762,85264.0,85262.0,0.23456962]
[1764607113576,0.09374762,85264.0,85257.0,0.01172924]
[1764607113773,0.09374762,85264.0,85259.0,0.01172896]
[1764607113996,0.09374762,85264.0,85262.0,0.23456921]
[1764607114535,0.00039163,85268.0,85267.0,0.23455733]
[1764607114827,0.00039163,85268.0,85266.0,0.23455997]
[1764607117569,0.55750333,85287.0,85265.0,0.24628805]
[1764607117570,0.09969271,85284.0,85271.0,0.01172731]
[1764607117744,0.0117236,85298.0,85271.0,0.01172731]
[1764607117745,1.710217,85298.0,85289.0,0.01172484]
[1764607117951,1.710217,85298.0,85288.0,0.01172497]
[1764607118105,1.710217,85298.0,85294.0,0.01172415]
[1764607118314,1.710217,85310.0,85304.0,0.01172277]
[1764607118511,0.09969271,85305.0,85286.0,0.04457525]
[1764607118710,0.09969271,85292.0,85290.0,0.24621635]
[1764607119342,0.09969271,85292.0,85263.0,0.08142]
[1764607119528,0.09969271,85292.0,85290.0,9.171e-05]
[1764607120365,0.09201,85291.0,85290.0,9.171e-05]
[1764607120549,2.43197101,85291.0,85290.0,9.171e-05]
[1764607120868,2.43197101,85291.0,85290.0,1.71e-06]
[1764607121075,2.43197101,85291.0,85264.0,0.01172827]
[1764607121076,2.09201,85291.0,85264.0,0.01172827]
[1764607121427,0.09969271,85292.0,85286.0,0.01172525]
[1764607121569,0.09969271,85292.0,85290.0,0.23449338]
[1764607122622,0.09969271,85292.0,85290.0,0.23449329]
[1764607122824,0.09969271,85292.0,85290.0,9.179e-05]
[1764607123025,0.09969271,85292.0,85290.0,0.23458466]
[1764607123960,0.09969271,85305.0,85297.0,0.23447402]
[1764607124154,2.0,85304.0,85297.0,0.01172374]
[1764607124358,2.0,85304.0,85287.0,0.01172511]
[1764607124560,0.09969271,85291.0,85268.0,0.08151]
[1764607124888,2.21150271,85291.0,85267.0,0.246285]
[1764607125163,2.30351271,85291.0,85268.0,0.019]
[1764607125325,2.30351271,85291.0,85269.0,0.01172759]
[1764607125525,2.30351271,85291.0,85269.0,0.23455011]
[1764607125721,2.30351271,85291.0,85268.0,0.019]
[1764607125923,2.21150271,85291.0,85273.0,0.01172704]
[1764607126122,0.09969271,85291.0,85285.0,0.01172539]
[1764607126326,0.09969271,85291.0,85282.0,0.03294]
[1764607126526,0.09969271,85291.0,85277.0,0.019]
[1764607126731,0.19170271,85291.0,85277.0,0.019]
[1764607126934,0.09969271,85291.0,85277.0,0.03072649]
[1764607127135,2.0,85298.0,85286.0,0.23450491]
[1764607127334,0.24617219,85307.0,85285.0,0.01172539]
[1764607127335,0.09969271,85291.0,85290.0,0.23458586]
[1764607127557,0.09969271,85291.0,85290.0,9.179e-05]
[1764607128300,0.01172429,85293.0,85290.0,9.179e-05]
[1764607128301,0.02520729,85293.0,85290.0,9.179e-05]
[1764607128431,0.04631,85306.0,85290.0,9.179e-05]
[1764607128432,0.09969271,85297.0,85290.0,9.179e-05]
[1764607129171,2.0,85296.0,85290.0,9.179e-05]
[1764607129472,2.0,85294.0,85290.0,9.179e-05]
[1764607129675,0.52520729,85295.0,85290.0,9.179e-05]
[1764607129676,0.0655,85291.0,85290.0,9.179e-05]
[1764607129838,2.0655,85291.0,85290.0,9.179e-05]
[1764607130083,2.02520729,85291.0,85290.0,9.179e-05]
[1764607130269,2.11721729,85291.0,85290.0,9.179e-05]
[1764607130471,2.02520729,85291.0,85290.0,9.179e-05]
[1764607132172,2.18271729,85291.0,85290.0,9.179e-05]
[1764607132372,2.41720861,85291.0,85290.0,9.179e-05]
[1764607132656,2.41720861,85291.0,85226.0,0.09969271]